[Event "GCT Superbet Blitz Poland 2025"]
[Site "Warsaw"]
[Date "2025.04.29"]
[Round "6"]
[White "Deac, Bogdan-Daniel"]
[Black "Vachier-Lagrave, Maxime"]
[Result "0-1"]
[ECO "D06"]
[WhiteElo "2668"]
[BlackElo "2722"]
[Annotator "RC"]
[PlyCount "94"]
[EventDate "2025.??.??"]
[EventType "blitz"]
[TimeControl "300+2"]

1. Nf3 {[%emt 0:00:02]} d5 {[%emt 0:00:01]} 2. d4 {[%emt 0:00:01]} Nf6 {[%emt 0:00:01]} 3. c4 {[%emt 0:00:01]} c5 {[%emt 0:00:01]} 4. cxd5 {[%emt 0:00:02]} cxd4 {[%emt 0:00:02]} 5. Qxd4 {[%emt 0:00:29]} Qxd5 {[%emt 0:00:02]} 6. Nc3 {[%emt 0:00:01]} Qxd4 {[%emt 0:00:01]} 7. Nxd4 {[%emt 0:00:01]} a6 {[%emt 0:00:02]} 8. g3 {[%emt 0:00:31]} e5 {[%emt 0:00:02]} 9. Nb3 {[%emt 0:00:01]} Nc6 {[%emt 0:00:01]} 10. Bg2 {[%emt 0:00:02]} a5 {[%emt 0:00:01]} 11. Na4 {[%emt 0:01:11]} ({RR} 11. Nb5 Bb4+ 12. Bd2 Ke7 13. a3 Bxd2+ 14. Nxd2 a4 15. Nc4 Be6 16. Rc1 Ra6 17. O-O Rd8 18. Ne3 Ra5 19. Bxc6 bxc6 20. Nc3 Bb3 21. Nb1 Ra6 22. f4 e4 23. Kf2 Rb6 24. Nc3 g6 25. Rb1 Nd5 {Praggnanandhaa,R (2747)-Nakamura,H (2789) Toronto CAN 2024 0-1 (54)}) ({RR} 11. Bg5 a4 12. Bxf6 gxf6 13. Nd5 Bb4+ 14. Nd2 O-O 15. Nxb4 Nxb4 16. O-O a3 17. bxa3 Rxa3 {½-½ (17) Schneider,I (2449)-Galperin,P (2497) Germany GER 2025}) 11... Bb4+ {[%emt 0:00:17]} 12. Bd2 {[%emt 0:00:02]} Ke7 $146 {[%emt 0:00:05]} ({RR} 12... Bxd2+ 13. Nxd2 Ke7 14. Nb3 Rd8 15. Nbc5 Rb8 16. Rc1 Nb4 17. a3 Na2 18. Rc2 b5 19. Nc3 Nxc3 20. Rxc3 b4 21. axb4 Rxb4 22. b3 Be6 23. O-O Rc8 24. Rfc1 Nd5 25. R3c2 Nb6 26. Nxe6 Rxc2 27. Rxc2 {Sadhwani,R (2677)-Dronavalli,H (2493) Chennai IND 2024 ½-½ (42)}) ({RR} 12... Be6 13. Rc1 Bxb3 14. Bxc6+ bxc6 15. axb3 Bxd2+ 16. Kxd2 O-O-O+ 17. Ke3 Kc7 18. Rc5 Rb8 19. f3 Rxb3+ 20. Kf2 Rb5 21. Rhc1 Rxc5 22. Rxc5 Nd7 23. Rxa5 Rb8 24. Ra7+ Rb7 25. Ra5 Rb5 26. Ra7+ Rb7 27. Ra5 {Aronyak,G (2528)-Erdogmus,Y (2553) Dubai UAE 2024 ½-½}) ({RR} 12... Be6 13. Rc1 Bxb3 14. Bxc6+ bxc6 15. axb3 Bxd2+ 16. Kxd2 O-O-O+ 17. Ke3 Kc7 18. Rc5 Rb8 19. f3 Rxb3+ 20. Kf2 Rb5 21. Rhc1 Rxc5 22. Rxc5 Nd7 23. Rxa5 Rb8 24. Ra7+ Rb7 25. Ra5 Rb5 26. Ra7+ Rb7 27. Ra5 {Aronyak,G (2528)-Erdogmus,Y (2553) Dubai UAE 2024 ½-½}) 13. Rc1 {[%emt 0:01:30]} Rd8 {[%emt 0:01:30]} 14. Bc3 {[%emt 0:00:27]} Be6 {[%emt 0:01:36]} 15. O-O {[%emt 0:00:55]} Bd5 {[%emt 0:00:07]} 16. Rfd1 {[%emt 0:00:08]} Bxg2 {[%emt 0:00:03]} 17. Kxg2 {[%emt 0:00:02]} Rxd1 {[%emt 0:00:47]} 18. Rxd1 {[%emt 0:00:01]} b5 {[%emt 0:00:01]} 19. Nb6 {[%emt 0:00:07]} Rb8 {[%emt 0:00:03]} 20. Nd5+ {[%emt 0:00:03]} Nxd5 {[%emt 0:00:01]} 21. Rxd5 {[%emt 0:00:01]} Bxc3 {[%emt 0:00:15]} 22. bxc3 {[%emt 0:00:01]} a4 {[%emt 0:00:01]} 23. Nc5 {[%emt 0:00:03]} Rd8 {[%emt 0:00:01]} 24. Rxd8 Nxd8 {[%emt 0:00:02]} 25. c4 {[%emt 0:00:07]} Kd6 {[%emt 0:00:11]} 26. Ne4+ {[%emt 0:00:02]} Kc6 {[%emt 0:00:00]} 27. Nc3 {[%emt 0:00:01]} bxc4 {[%emt 0:00:06]} 28. a3 {[%emt 0:00:01]} Nb7 {[%emt 0:00:13]} 29. Kf3 {[%emt 0:00:01]} Nc5 {[%emt 0:00:02]} 30. e4 {[%emt 0:00:02]} Nb3 {[%emt 0:00:05]} 31. Ke3 {[%emt 0:00:03]} Nd4 {[%emt 0:00:01]} 32. Nxa4 {[%emt 0:00:02]} Nc2+ {[%emt 0:00:04]} 33. Kd2 {[%emt 0:00:02]} Nxa3 {[%emt 0:00:00]} 34. Kc3 {[%emt 0:00:01]} Kb5 {[%emt 0:00:02]} 35. Nb2 {[%emt 0:00:01]} h5 {[%emt 0:00:16]} 36. h3 {[%emt 0:00:02]} g5 {[%emt 0:00:02]} 37. g4 {[%emt 0:00:02]} h4 {[%emt 0:00:01]} 38. f3 {[%emt 0:00:04]} f6 {[%emt 0:00:00]} 39. Nd1 {[%emt 0:00:01]} Kc5 {[%emt 0:00:01]} 40. Ne3 {[%emt 0:00:03]} Nb5+ {[%emt 0:00:00]} 41. Kd2 {[%emt 0:00:01]} Nd4 {[%emt 0:00:04]} 42. Nd5 {[%emt 0:00:01]} Nxf3+ {[%emt 0:00:01]} 43. Kc3 {[%emt 0:00:02]} Ng1 {[%emt 0:00:03]} 44. Nxf6 {[%emt 0:00:01]} Nxh3 {[%emt 0:00:01]} 45. Nd7+ {[%emt 0:00:01]} Kd6 {[%emt 0:00:01]} 46. Nb6 {[%emt 0:00:01]} Nf2 {[%emt 0:00:02]} 47. Nxc4+ {[%emt 0:00:01]} Ke6 {[%emt 0:00:00]} 0-1

[Event "GCT Superbet Blitz Poland 2025"]
[Site "Warsaw"]
[Date "2025.04.29"]
[Round "6"]
[White "Gavrilescu, David"]
[Black "Fedoseev, Vladimir"]
[Result "0-1"]
[ECO "B11"]
[WhiteElo "2554"]
[BlackElo "2739"]
[Annotator "RC"]
[PlyCount "78"]
[EventDate "2025.??.??"]
[EventType "blitz"]
[TimeControl "300+2"]

1. e4 {[%emt 0:00:02]} c6 {[%emt 0:00:04]} 2. Nf3 {[%emt 0:00:01]} d5 {[%emt 0:00:01]} 3. Nc3 {[%emt 0:00:02]} a6 {[%emt 0:00:03]} 4. d4 {[%emt 0:00:04]} Bg4 {[%emt 0:00:01]} 5. h3 {[%emt 0:00:01]} Bh5 {[%emt 0:00:03]} 6. g4 {[%emt 0:00:01]} Bg6 {[%emt 0:00:01]} 7. Ne5 {[%emt 0:00:02]} Bxe4 {[%emt 0:00:50]} ({RR} 7... e6 8. Nxg6 hxg6 9. Bg2 Nf6 10. e5 Nfd7 11. Ne2 c5 12. c4 dxc4 13. Bxb7 Ra7 14. Bg2 cxd4 15. Qxd4 Qa5+ 16. Bd2 Bb4 17. O-O Rc7 18. Bxb4 Qxb4 19. Rac1 Qc5 20. f4 g5 21. f5 Nxe5 22. fxe6 {Bologan,V (2678)-Berkes,F (2693) Paks 2011 0-1 (54)}) 8. Nxe4 {[%emt 0:00:02]} dxe4 {[%emt 0:00:02]} 9. c3 {[%emt 0:00:01]} e6 {[%emt 0:00:05]} 10. Bg2 $146 {[%emt 0:00:28]} ({RR} 10. Qb3 Qc8 11. Bg2 Nf6 12. g5 Nfd7 13. Nc4 b5 14. Ne3 Nb6 15. Bxe4 Ra7 16. Bd2 g6 17. O-O-O N8d7 18. h4 c5 19. Kb1 Bg7 20. h5 cxd4 21. cxd4 Bxd4 22. Bb4 Nc5 23. Qc2 Bxe3 24. fxe3 Nxe4 {Mastrovasilis,D (2593)-Navara,D (2745) Achaia 2016 1-0 (33)}) 10... Bd6 {[%emt 0:00:48]} 11. Nc4 {[%emt 0:00:38]} f5 {[%emt 0:00:14]} 12. Qb3 {[%emt 0:01:42]} b5 {[%emt 0:00:20]} 13. Ne5 {[%emt 0:00:34]} Qe7 {[%emt 0:00:11]} 14. Bg5 {[%emt 0:00:17]} Nf6 {[%emt 0:00:04]} 15. a4 {[%emt 0:00:18]} b4 {[%emt 0:00:39]} 16. O-O {[%emt 0:00:21]} Nbd7 {[%emt 0:00:15]} 17. Nxc6 {[%emt 0:00:10]} Qf7 {[%emt 0:00:01]} 18. gxf5 {[%emt 0:00:07]} exf5 {[%emt 0:00:01]} 19. Qxf7+ {[%emt 0:00:04]} Kxf7 {[%emt 0:00:01]} 20. cxb4 {[%emt 0:00:05]} Nd5 {[%emt 0:00:09]} 21. Bd2 {[%emt 0:00:04]} Nb8 {[%emt 0:00:31]} 22. Rfc1 {[%emt 0:00:24]} Nxc6 {[%emt 0:00:05]} 23. Rxc6 {[%emt 0:00:01]} Bxb4 {[%emt 0:00:02]} 24. Bxb4 {[%emt 0:00:03]} Nxb4 {[%emt 0:00:01]} 25. Rc7+ {[%emt 0:00:03]} Kf6 {[%emt 0:00:01]} 26. Rac1 {[%emt 0:00:04]} Rhd8 {[%emt 0:00:01]} 27. R1c4 {[%emt 0:00:09]} Rab8 {[%emt 0:00:00]} 28. f3 {[%emt 0:00:05]} e3 {[%emt 0:00:07]} 29. f4 {[%emt 0:00:01]} e2 {[%emt 0:00:16]} 30. Kf2 {[%emt 0:00:04]} Re8 {[%emt 0:00:01]} 31. R4c6+ {[%emt 0:00:02]} Nxc6 {[%emt 0:00:04]} 32. Rxc6+ {[%emt 0:00:01]} Re6 {[%emt 0:00:01]} 33. d5 {[%emt 0:00:03]} Rxc6 {[%emt 0:00:03]} 34. dxc6 {[%emt 0:00:02]} Rxb2 {[%emt 0:00:02]} 35. Bd5 {[%emt 0:00:03]} Rc2 {[%emt 0:00:02]} 36. h4 {[%emt 0:00:02]} a5 {[%emt 0:00:02]} 37. h5 {[%emt 0:00:01]} g5 {[%emt 0:00:03]} 38. hxg6 {[%emt 0:00:02]} hxg6 {[%emt 0:00:01]} 39. Bf3 {[%emt 0:00:03]} Ke7 {[%emt 0:00:02]} 0-1

[Event "GCT Superbet Blitz Poland 2025"]
[Site "Warsaw"]
[Date "2025.04.29"]
[Round "7"]
[White "Firouzja, Alireza"]
[Black "Aravindh, Chithambaram VR."]
[Result "1-0"]
[ECO "C55"]
[WhiteElo "2757"]
[BlackElo "2749"]
[Annotator "TA"]
[PlyCount "57"]
[EventDate "2025.??.??"]
[EventType "blitz"]
[TimeControl "300+2"]

{[%evp 19,57,45,50,49,46,54,53,43,70,73,79,68,94,80,93,71,119,76,78,72,163,158,552,543,694,701,715,731,727,717,716,713,933,868,29985,29985,29994,29995,29995,29996]} 1. e4 {[%emt 0:00:00]} e5 {[%emt 0:00:01]} 2. Nf3 {[%emt 0:00:01]} Nc6 {[%emt 0:00:01]} 3. Bc4 {[%emt 0:00:01]} Nf6 {[%emt 0:00:03]} 4. d3 {[%emt 0:00:01]} d5 {[%emt 0:00:01]} 5. exd5 {[%emt 0:00:02]} Nxd5 {[%emt 0:00:02]} 6. O-O {[%emt 0:00:02]} Bg4 {[%emt 0:00:01]} 7. Re1 {[%emt 0:00:07]} Bb4 {[%emt 0:00:02]} 8. c3 {[%emt 0:00:11]} Be7 {[%emt 0:00:02]} 9. h3 {[%emt 0:00:11]} Bh5 {[%emt 0:00:02]} 10. Nbd2 {[%emt 0:00:07]} ({RR} 10. g4 Bg6 11. Nxe5 Nxe5 12. Rxe5 Nb6 13. Qe1 f6 14. Re3 Nxc4 15. dxc4 h5 16. b3 Kf7 17. Ba3 c5 18. Nd2 hxg4 19. hxg4 Bd6 20. Nf1 Rh4 21. Qd1 Qd7 22. Qd5+ Kf8 23. Bxc5 Rxg4+ 24. Ng3 Rd8 {Stanica,A (1857)-Ostrovsky Berman,N (2116) Eforie Nord ROU 2025 1-0}) 10... O-O {[%emt 0:00:12]} 11. a4 $146 {[%emt 0:00:23] C55: Two Knights: 4 d3, 4 d4 exd4 5 e5 and Max Lange Attack.} ({RR} 11. Nf1 f6 12. Ne3 Bf7 13. Nxd5 Bxd5 14. Qb3 Bxc4 15. Qxc4+ Kh8 16. Be3 Qd7 17. Rad1 Bd6 18. b4 Ne7 19. Nd2 f5 20. Nf3 Ng6 21. Re2 Rae8 22. Qd5 e4 23. dxe4 fxe4 24. Ng5 Re5 25. Qxb7 Qe7 {Adewumi,T (2349)-Nyzhnyk,I (2564) Saint Louis USA 2024 0-1 (68)}) ({RR} 11. Nf1 f6 12. Ne3 Bf7 13. Nxd5 Bxd5 14. Qb3 Bxc4 15. Qxc4+ Kh8 16. Be3 Qd7 17. Rad1 Bd6 18. b4 Ne7 19. Nd2 f5 20. Nf3 Ng6 21. Re2 Rae8 22. Qd5 e4 23. dxe4 fxe4 24. Ng5 Re5 25. Qxb7 Qe7 {Adewumi,T (2349)-Nyzhnyk,I (2564) Saint Louis USA 2024 0-1 (68)}) 11... Kh8 {[%emt 0:00:43]} 12. a5 {[%emt 0:00:31]} a6 {[%emt 0:00:23]} 13. Ne4 {[%emt 0:00:19] White is slightly better.} b5 {[%emt 0:00:17]} 14. axb6 {[%emt 0:00:10]} Nxb6 {[%emt 0:00:02]} 15. Bb3 {[%emt 0:00:56] White is more active.} (15. Bxa6 Bxf3 16. Qxf3 Nb8 $19) 15... f6 $146 {[%emt 0:00:16]} (15... Bg6) 16. Ng3 {[%emt 0:00:15]} Bg6 {[%emt 0:00:09]} 17. Nh4 {[%emt 0:00:25] [#]} Bxd3 {[%emt 0:00:35]} ({Black should try} 17... Bf7) 18. Qf3 {[%emt 0:00:18]} e4 {[%emt 0:00:43]} 19. Nxe4 {[%emt 0:00:33][%cal Bg3e4,Be4g5,Bg5e6,Be6f4,Bf4g6,Bg6e7][%mdl 32] White has strong rooks and is better} Ne5 {[%emt 0:00:27]} (19... f5 $16 20. Nd2 (20. Nxf5 Ne5 $16) 20... Bxh4) 20. Qg3 $40 {[%emt 0:00:16][%mdl 128] Hoping for Nf5. White wants a kill.} f5 $2 {[%emt 0:00:39] A mistake that costs the game.} (20... Qd7 $16 {is more resistant.} 21. Bf4 c5) 21. Ng5 {[%emt 0:00:11]} f4 {[%emt 0:00:21]} 22. Bxf4 {[%emt 0:00:02]} Rxf4 {[%emt 0:00:03]} 23. Ne6 {[%emt 0:00:01][%csl Ge6][%cal Rg3g7] [#]} Qg8 {[%emt 0:00:25]} 24. Nxf4 {[%emt 0:00:12]} Qxb3 {[%emt 0:00:09]} 25. Rxe5 {[%emt 0:00:06]} Bxh4 {[%emt 0:00:08]} 26. Qxh4 {[%emt 0:00:01]} Qxb2 {[%emt 0:00:04]} 27. Rae1 {[%emt 0:00:02] White mates.} ({Weaker is} 27. Nxd3 Qxa1+ 28. Kh2 Qxc3 $11) 27... Bb5 {[%emt 0:00:01]} 28. Ng6+ {[%emt 0:00:04]} Kg8 {[%emt 0:00:01]} 29. Ne7+ {[%emt 0:00:01] Weighted Error Value: White=0.03 (flawless) /Black=0.97 Loses game: 	--- 	Black=1 Mistake: 	--- 	Black=2 Inaccurate: 	White=1 	Black=2 OK: 	White=7 	Black=4 Best: 	White=2 	---} 1-0

[Event "GCT Superbet Blitz Poland 2025"]
[Site "Warsaw"]
[Date "2025.04.29"]
[Round "7"]
[White "Fedoseev, Vladimir"]
[Black "Deac, Bogdan-Daniel"]
[Result "1-0"]
[ECO "E06"]
[WhiteElo "2739"]
[BlackElo "2668"]
[Annotator "RC"]
[PlyCount "127"]
[EventDate "2025.??.??"]
[EventType "blitz"]
[TimeControl "300+2"]

1. d4 {[%emt 0:00:01]} Nf6 {[%emt 0:00:01]} 2. c4 {[%emt 0:00:01]} e6 {[%emt 0:00:01]} 3. Nf3 {[%emt 0:00:01]} d5 {[%emt 0:00:01]} 4. g3 {[%emt 0:00:04]} Be7 {[%emt 0:00:02]} 5. Bg2 {[%emt 0:00:01]} O-O {[%emt 0:00:02]} 6. Nbd2 {[%emt 0:00:09]} b6 {[%emt 0:00:26]} 7. O-O {[%emt 0:00:11]} Bb7 {[%emt 0:00:02]} 8. cxd5 {[%emt 0:00:15]} ({RR} 8. Qc2 Nbd7 9. Rd1 c5 10. b3 Rc8 11. Bb2 cxd4 12. Nxd4 Qc7 13. Rac1 dxc4 14. Qxc4 Qxc4 15. Nxc4 Bxg2 16. Kxg2 a6 17. f3 Nd5 18. Kf2 Bc5 19. e4 Nb4 20. a3 Nc6 21. Kg2 Nxd4 22. Bxd4 Bxd4 {Sevian,S (2694)-Piliposyan,R (2416) chess.com INT 2025 1-0 (48)}) 8... Nxd5 {[%emt 0:00:13]} ({RR} 8... exd5 9. b3 c5 10. Bb2 Nc6 11. Rc1 Ne4 12. dxc5 Bxc5 13. Ne1 Bd4 14. Bxd4 Nxd4 15. Nxe4 dxe4 16. Nc2 Ne6 17. Qxd8 Rfxd8 18. Rfd1 Rac8 19. Rxd8+ Rxd8 20. Ne3 g6 21. Kf1 f5 22. f3 exf3 23. Bxf3 {Eljanov,P (2703)-Radjabov,T (2751) Batumi 2018 ½-½}) 9. Ne5 $146 {[%emt 0:00:08]} ({RR} 9. e4 Nf6 10. Qc2 Nbd7 11. Ng5 h6 12. e5 Bxg2 13. exf6 Nxf6 14. Nxe6 fxe6 15. Kxg2 Qxd4 16. Qxc7 Bc5 17. Nb3 Qe4+ 18. Kg1 Ng4 19. Nxc5 bxc5 20. Qxc5 Ne5 21. f4 Nf3+ 22. Kf2 Nxh2 23. Qe3 Ng4+ {Gusev,M (2260)-Elier,A (2160) chess.com INT 2024 0-1}) ({RR} 9. Re1 c5 10. e4 Nf6 11. dxc5 Bxc5 12. e5 Ng4 13. Rf1 Nc6 14. Ne4 Nd4 15. Nxd4 Bxe4 16. Bxe4 Nxf2 17. Rxf2 Bxd4 18. Bxa8 Bxf2+ 19. Kxf2 Qxd1 {0-1 (19) Donda,J (1706)-Mena,M (2032) chess.com INT 2024}) ({RR} 9. a3 Nd7 10. e4 N5f6 11. Re1 c5 12. e5 Nd5 13. Ne4 h6 14. dxc5 Nxc5 15. Nxc5 Bxc5 16. b4 Be7 17. Bb2 a5 18. b5 Rc8 19. Rc1 Rxc1 20. Qxc1 Qd7 21. Nd4 Bc5 22. Qc4 Rc8 23. Qd3 Bxd4 {Serov,M (2275)-Shalimov,V (2393) St Petersburg 2007 1-0 (85)}) 9... Nd7 {[%emt 0:00:11]} 10. Ndc4 {[%emt 0:00:06]} c5 {[%emt 0:00:36]} 11. Nxd7 {[%emt 0:00:41]} Qxd7 {[%emt 0:00:05]} 12. dxc5 {[%emt 0:00:01]} Bxc5 {[%emt 0:02:28]} 13. e4 {[%emt 0:00:02]} Nf6 {[%emt 0:00:21]} 14. Qxd7 {[%emt 0:00:26]} Nxd7 {[%emt 0:00:01]} 15. Bf4 {[%emt 0:00:59]} Ba6 {[%emt 0:00:11]} 16. Rfd1 {[%emt 0:00:43]} Bxc4 {[%emt 0:00:08]} 17. Rxd7 {[%emt 0:00:03]} Bb5 {[%emt 0:00:02]} 18. Rc7 {[%emt 0:00:18]} Rfc8 {[%emt 0:00:09]} 19. Rd1 {[%emt 0:00:26]} Rxc7 {[%emt 0:00:05]} 20. Bxc7 {[%emt 0:00:02]} Rc8 {[%emt 0:00:05]} 21. Be5 {[%emt 0:00:13]} f6 {[%emt 0:00:21]} 22. Bc3 {[%emt 0:00:03]} Kf7 {[%emt 0:00:03]} 23. Bf1 {[%emt 0:00:05]} Bxf1 {[%emt 0:00:08]} 24. Kxf1 {[%emt 0:00:02]} Ke7 {[%emt 0:00:02]} 25. e5 {[%emt 0:00:05]} f5 {[%emt 0:00:05]} 26. Bd2 {[%emt 0:00:01]} Ke8 {[%emt 0:00:01]} 27. Rc1 {[%emt 0:00:07]} Rd8 {[%emt 0:00:01]} 28. Ke2 {[%emt 0:00:02]} Rd5 {[%emt 0:00:01]} 29. f4 {[%emt 0:00:09]} Kd7 {[%emt 0:00:01]} 30. b4 {[%emt 0:00:08]} Be7 {[%emt 0:00:02]} 31. Bc3 {[%emt 0:00:10]} Kd8 {[%emt 0:00:03]} 32. a4 {[%emt 0:00:01]} a6 {[%emt 0:00:02]} 33. h4 {[%emt 0:00:03]} h5 {[%emt 0:00:02]} 34. Bd2 {[%emt 0:00:06]} Kd7 {[%emt 0:00:01]} 35. Bc3 {[%emt 0:00:03]} Bf8 {[%emt 0:00:02]} 36. Ke3 {[%emt 0:00:02]} Be7 {[%emt 0:00:01]} 37. Bd4 {[%emt 0:00:03]} Bxb4 {[%emt 0:00:03]} 38. Rb1 {[%emt 0:00:04]} a5 {[%emt 0:00:05]} 39. Bxb6 {[%emt 0:00:02]} Bd2+ {[%emt 0:00:02]} 40. Ke2 {[%emt 0:00:03]} Bb4 {[%emt 0:00:02]} 41. Rc1 {[%emt 0:00:06]} Rd2+ {[%emt 0:00:01]} 42. Ke3 {[%emt 0:00:01]} Ra2 {[%emt 0:00:03]} 43. Rc7+ {[%emt 0:00:01]} Ke8 {[%emt 0:00:01]} 44. Rxg7 {[%emt 0:00:04]} Rxa4 {[%emt 0:00:01]} 45. Kd3 {[%emt 0:00:02]} Ra3+ {[%emt 0:00:03]} 46. Kc4 {[%emt 0:00:01]} Ra1 {[%emt 0:00:02]} 47. Rh7 {[%emt 0:00:02]} Ra3 {[%emt 0:00:02]} 48. Rg7 {[%emt 0:00:05]} Ra1 {[%emt 0:00:02]} 49. Rh7 {[%emt 0:00:03]} Ra3 {[%emt 0:00:01]} 50. Rxh5 {[%emt 0:00:02]} Rxg3 {[%emt 0:00:01]} 51. Rh8+ {[%emt 0:00:01]} Kf7 {[%emt 0:00:01]} 52. Rh7+ {[%emt 0:00:02]} Rg7 {[%emt 0:00:03]} 53. Rh6 {[%emt 0:00:04]} Rg4 {[%emt 0:00:03]} 54. Be3 {[%emt 0:00:01]} Bf8 {[%emt 0:00:04]} 55. Rf6+ {[%emt 0:00:01]} Kg8 {[%emt 0:00:03]} 56. Rxe6 {[%emt 0:00:00]} Rxh4 {[%emt 0:00:01]} 57. Rg6+ {[%emt 0:00:02]} Kh7 {[%emt 0:00:02]} 58. Rf6 {[%emt 0:00:01]} Bg7 {[%emt 0:00:02]} 59. Rxf5 {[%emt 0:00:01]} Kg6 {[%emt 0:00:01]} 60. Rg5+ {[%emt 0:00:00]} Kf7 {[%emt 0:00:01]} 61. e6+ {[%emt 0:00:01]} Kf6 {[%emt 0:00:03]} 62. e7 {[%emt 0:00:04]} Rh8 {[%emt 0:00:02]} 63. Bd4+ Kxe7 {[%emt 0:00:02]} 64. Rxg7+ {[%emt 0:00:01]} 1-0

[Event "GCT Superbet Blitz Poland 2025"]
[Site "Warsaw"]
[Date "2025.04.29"]
[Round "7"]
[White "Vachier-Lagrave, Maxime"]
[Black "Aronian, Levon"]
[Result "1-0"]
[ECO "C00"]
[WhiteElo "2722"]
[BlackElo "2747"]
[Annotator "RC"]
[PlyCount "75"]
[EventDate "2025.??.??"]
[EventType "blitz"]
[TimeControl "300+2"]

1. e4 {[%emt 0:00:00]} e6 {[%emt 0:00:01]} 2. c4 {[%emt 0:00:10]} d5 {[%emt 0:00:02]} 3. cxd5 {[%emt 0:00:01]} exd5 {[%emt 0:00:02]} 4. exd5 {[%emt 0:00:01]} Nf6 {[%emt 0:00:03]} 5. Bb5+ {[%emt 0:00:01]} Nbd7 {[%emt 0:00:06]} 6. Nc3 {[%emt 0:00:01]} Be7 {[%emt 0:00:01]} 7. d4 {[%emt 0:00:10]} O-O {[%emt 0:00:03]} 8. Nf3 {[%emt 0:00:01]} Nb6 {[%emt 0:00:01]} 9. h3 {[%emt 0:00:01]} Nbxd5 {[%emt 0:00:07]} 10. O-O {[%emt 0:00:02]} Be6 $146 {[%emt 0:00:20]} ({RR} 10... Bf5 11. Re1 c6 12. Bc4 Bb4 13. Bd2 Bxc3 14. bxc3 Ne4 15. Rc1 Re8 16. Bb3 Qc7 17. Ne5 Rad8 18. c4 Nxd2 19. cxd5 Nxb3 20. Qxb3 Bg6 21. Re3 Rb8 22. dxc6 bxc6 23. Nxc6 Kh8 24. d5 h6 25. Qa3 {Vachier Lagrave,M (2718)-Vidit,S (2720) Zagreb CRO 2024 1-0 (46)}) ({RR} 10... Bf5 11. Bg5 c6 12. Bc4 Nb6 13. Bb3 Nfd5 14. Bxe7 Nxe7 15. Re1 Ned5 16. Ne5 f6 17. Nd3 Bxd3 18. Qxd3 Qd7 19. Ne4 Rae8 20. Nc5 Qf7 21. h4 Rxe1+ 22. Rxe1 Re8 23. Rxe8+ Qxe8 24. Nxb7 Qe1+ 25. Qf1 {Flis,P (1979)-Pettersson,A (1841) Warsaw POL 2024 1-0 (36)}) ({RR} 10... Bf5 11. Re1 c6 12. Bd3 Bxd3 13. Qxd3 h6 14. Ne5 Qd6 15. Qf3 Rad8 16. a3 Rfe8 17. Bd2 Bf8 18. Rad1 Qc7 19. Ng4 Nxg4 20. hxg4 Rxe1+ 21. Rxe1 Nb6 22. Ne2 Be7 23. Qe4 Bf6 24. Qf5 Nc4 25. Bc3 {Frank,A (1857)-Domalchuk-Jonasson,A (2318) Reykjavik ISL 2023 ½-½ (72)}) 11. Re1 {[%emt 0:00:04]} c5 {[%emt 0:00:05]} 12. Bg5 {[%emt 0:00:27]} a6 {[%emt 0:00:11]} 13. Bf1 {[%emt 0:00:13]} Rc8 {[%emt 0:00:20]} 14. Rc1 {[%emt 0:00:21]} h6 {[%emt 0:01:05]} 15. Bh4 {[%emt 0:00:04]} Nxc3 {[%emt 0:00:19]} 16. bxc3 {[%emt 0:00:01]} Re8 {[%emt 0:00:06]} 17. a4 {[%emt 0:00:09]} Bd5 {[%emt 0:00:32]} 18. dxc5 {[%emt 0:00:30]} Rxc5 {[%emt 0:00:05]} 19. Nd4 {[%emt 0:00:20]} Ne4 {[%emt 0:01:05]} 20. Bxe7 {[%emt 0:00:07]} Rxe7 {[%emt 0:00:12]} 21. c4 {[%emt 0:00:07]} Rec7 {[%emt 0:00:01]} 22. Nb3 {[%emt 0:00:06]} Qf6 {[%emt 0:00:40]} 23. f3 {[%emt 0:00:32]} Qb6 {[%emt 0:00:01]} 24. fxe4 {[%emt 0:00:15]} Rxc4+ {[%emt 0:00:01]} 25. Kh1 {[%emt 0:00:02]} Rxc1 {[%emt 0:00:06]} 26. Nxc1 {[%emt 0:00:01]} Be6 {[%emt 0:00:04]} 27. Qd8+ {[%emt 0:00:07]} Kh7 {[%emt 0:00:01]} 28. Nd3 {[%emt 0:00:02]} Qa5 {[%emt 0:00:12]} 29. Rc1 {[%emt 0:00:11]} Rc5 {[%emt 0:00:03]} 30. Qxa5 {[%emt 0:00:02]} Rxa5 {[%emt 0:00:01]} 31. Nc5 {[%emt 0:00:01]} Ba2 {[%emt 0:00:05]} 32. Nxb7 {[%emt 0:00:09]} Rxa4 {[%emt 0:00:01]} 33. Nc5 {[%emt 0:00:01]} Rd4 {[%emt 0:00:02]} 34. Bxa6 {[%emt 0:00:02]} f6 {[%emt 0:00:02]} 35. Kg1 {[%emt 0:00:09]} Bf7 {[%emt 0:00:02]} 36. Bd3 {[%emt 0:00:03]} Kg8 {[%emt 0:00:02]} 37. Kf2 {[%emt 0:00:01]} Rb4 {[%emt 0:00:01]} 38. Rb1 {[%emt 0:00:03]} 1-0